fUSD/lending_fUSD_20250609
["ID","MTS","AMOUNT","RATE_DAILY","PERIOD"]
[365147974,1749493846387,-400.0,0.000185,2]
[365147975,1749493846399,-61.18,0.000185,2]
[365147976,1749493846409,-262.24963904,0.00019099,2]
[365147977,1749493846418,-500.0,0.00019099,2]
[365147978,1749493846428,-500.0,0.00019099,2]
[365147979,1749493846437,-500.0,0.00019099,2]
[365147980,1749493846446,-162.13293793,0.00019099,2]
[365147981,1749493846455,-383.82174773,0.00019099,2]
[365147982,1749493846464,-1981.2996753,0.00019178,3]
[365147986,1749493902063,205.0,0.0001711,2]
[365147990,1749494082304,150.0,0.00018011,2]
[365147991,1749494213326,153.98944935,0.00017945,2]
[365147992,1749494384895,424.73,0.00013699,2]
[365147994,1749494501253,201.0,0.00017561,2]
[365147995,1749494511284,1074.93,0.00016111,2]
[365147996,1749494564670,153.98944935,0.00017945,2]
[365147997,1749494831745,201.0,0.0001781,2]
[365147998,1749494876758,-182.3077415,0.00018013,2]
[365147999,1749494883225,-21.7322585,0.00018013,2]
[365148000,1749494883251,-129.2677415,0.00018016,2]
[365148001,1749494900035,-158.3600475,0.00018016,2]
[365148002,1749494904146,153.98944935,0.00017938,2]
[365148003,1749494908043,340.667789,0.00017925,2]
[365148020,1749495032196,-292.20542,0.00018015,2]
[365148021,1749495032208,-257.75,0.00018015,2]
[365148022,1749495032232,-158.0,0.00018015,2]
[365148023,1749495032244,-6.28458,0.00018015,2]
[365148024,1749495032254,-12.372211,0.00018016,2]
[365148025,1749495032264,-150.0,0.00018018,7]
[365148026,1749495032274,-856.06887225,0.00018024,2]
[365148027,1749495032286,-143.93112775,0.00018024,2]
[365148028,1749495032296,-300.0,0.00018027,2]
[365148029,1749495032306,-1368.51,0.00018038,2]
[365148030,1749495032316,-200.0,0.00018041,2]
[365148031,1749495032326,-885.76,0.00018044,2]
[365148032,1749495032336,-1074.93,0.00018375,2]
[365148033,1749495032346,-500.0,0.000186,6]
[365148034,1749495032355,-927.88001262,0.00018648,2]
[365148035,1749495032367,-272.11998738,0.00018648,2]
[365148036,1749495032377,-222.73437919,0.00018649,2]
[365148037,1749495032387,-1110.36958602,0.00018649,2]
[365148038,1749495032397,-1957.85600001,0.00018649,2]
[365148039,1749495032407,-151.0,0.00018649,2]
[365148040,1749495032416,-500.0,0.00018649,2]
[365148041,1749495032426,-11.72100874,0.00018649,2]
[365148042,1749495032453,-488.27899126,0.00018649,2]
[365148043,1749495032463,-472.632027,0.00018649,2]
[365148044,1749495032474,-79.16286042,0.00018649,2]
[365148045,1749495032484,-207.4,0.00018649,2]
[365148046,1749495032494,-300.0,0.00018659,2]
[365148047,1749495032503,-25000.0,0.0001866,2]
[365148048,1749495032513,-1000.0,0.000187,6]
[365148049,1749495032523,-349.179845,0.00018794,2]
[365148050,1749495032533,-819.77,0.000188,2]
[365148051,1749495032543,-796.76,0.000188,2]
[365148052,1749495032553,-796.76,0.000188,2]
[365148053,1749495032562,-796.76,0.000188,2]
[365148054,1749495032571,-796.76,0.000188,2]
[365148055,1749495032581,-452.59805378,0.000188,2]
[365148056,1749495032702,-8.58194622,0.000188,2]
[365148057,1749495032712,-300.96,0.000188,2]
[365148058,1749495032723,-796.76,0.000188,2]
[365148060,1749495032735,-940.04,0.000188,2]
[365148062,1749495032745,-1500.0,0.000188,6]
[365148064,1749495032755,-766.21,0.000189,2]
[365148066,1749495032764,-461.18,0.000189,2]
[365148068,1749495032774,-461.18,0.000189,2]
[365148070,1749495032784,-796.76,0.000189,2]
[365148072,1749495032793,-461.18,0.000189,2]
[365148074,1749495032804,-796.76,0.000189,2]
[365148076,1749495032813,-2000.0,0.000189,6]
[365148078,1749495032823,-796.76,0.000189,2]
[365148080,1749495032832,-461.18,0.000189,2]
[365148082,1749495032842,-305.51236409,0.000189,2]
[365148084,1749495032851,-1000.0,0.00018904,2]
[365148086,1749495032860,-150.0,0.00018907,2]
[365148088,1749495032870,-217.55110289,0.0001891,2]
[365148090,1749495032880,-150.0,0.00018913,2]
[365148092,1749495032890,-150.0,0.00018918,2]
[365148094,1749495032899,-150.0,0.00018925,2]
[365148096,1749495032909,-150.0,0.00018929,2]
[365148098,1749495032919,-150.0,0.00018931,2]
[365148100,1749495032928,-150.0,0.00018932,2]
[365148102,1749495032937,-150.0,0.00018933,2]
[365148104,1749495032947,-150.0,0.00018934,2]
[365148106,1749495032956,-305.51236387,0.00018934,2]
[365148108,1749495032966,-150.0,0.00018937,2]
[365148110,1749495032975,-150.0,0.00018954,2]
[365148112,1749495032984,-150.0,0.00018959,2]
[365148114,1749495032994,-150.0,0.00018961,2]
[365148116,1749495033003,-150.0,0.00018962,2]
[365148118,1749495033012,-150.0,0.00018964,2]
[365148120,1749495033022,-150.0,0.00018964,2]
[365148122,1749495033032,-305.51236387,0.00018969,2]
[365148124,1749495033041,-150.0,0.00018978,2]
[365148126,1749495033051,-150.0,0.00018978,2]
[365148128,1749495033061,-150.0,0.00018984,2]
[365148130,1749495033071,-150.0,0.00018988,2]
[365148132,1749495033082,-5136.5956054,0.0001899,2]
[365148134,1749495033092,-305.51236387,0.00019003,2]
[365148136,1749495033102,-150.0,0.00019008,2]
[365148138,1749495033111,-150.0,0.00019013,2]
[365148140,1749495033120,-500.0,0.00019024,2]
[365148142,1749495033130,-500.0,0.00019025,2]
[365148144,1749495033140,-500.0,0.00019025,2]
[365148146,1749495033149,-200.0,0.00019025,2]
[365148148,1749495033158,-150.0,0.00019027,2]
[365148150,1749495033167,-150.0,0.00019027,2]
[365148152,1749495033177,-150.0,0.00019035,2]
[365148154,1749495033186,-305.51236387,0.00019038,2]
[365148175,1749495033403,-1000.0,0.00019053,2]
[365148177,1749495033414,-150.0,0.00019054,2]
[365148179,1749495033423,-150.0,0.00019055,2]
[365148181,1749495033433,-150.0,0.00019059,2]
[365148183,1749495033444,-948.03774389,0.00019068,2]
[365148185,1749495033454,-150.0,0.0001907,2]
[365148194,1749495033536,-305.51236387,0.00019072,2]
[365148196,1749495033546,-162.13293793,0.00019073,2]
[365148198,1749495033556,-500.0,0.00019073,2]
[365148200,1749495033566,-262.24963904,0.00019073,2]
[365148202,1749495033576,-500.0,0.00019073,2]
[365148204,1749495033585,-500.0,0.00019073,2]
[365148206,1749495033594,-317.14820589,0.00019073,2]
[365148207,1749495033603,-500.0,0.00019073,2]
[365148209,1749495033613,-5279.50825027,0.00019074,2]
[365148212,1749495033623,-1708.5916992,0.00019074,2]
[365148213,1749495033634,-161.63188428,0.00019078,2]
[365148215,1749495033643,-380.06847302,0.00019078,2]
[365148217,1749495033653,-150.0,0.00019081,2]
[365148219,1749495033663,-1708.59169916,0.00019086,2]
[365148221,1749495033672,-201.0,0.00019088,3]
[365148223,1749495033682,-1000.0,0.00019092,2]
[365148225,1749495033692,-150.0,0.00019092,2]
[365148227,1749495033701,-150.0,0.00019096,2]
[365148229,1749495033710,-1708.59169916,0.00019098,2]
[365148231,1749495033720,-305.51236387,0.00019107,2]
[365148233,1749495033732,-1708.59169916,0.0001911,2]
[365148235,1749495033742,-150.0,0.00019118,2]
[365148237,1749495033751,-1708.59169916,0.00019122,2]
[365148239,1749495033760,-150.0,0.00019125,2]
[365148241,1749495033770,-150.0,0.00019128,2]
[365148243,1749495033780,-1708.59169916,0.00019133,2]
[365148245,1749495033789,-1000.0,0.00019141,2]
[365148247,1749495033798,-305.51236387,0.00019141,2]
[365148248,1749495033808,-1708.59169916,0.00019145,2]
[365148250,1749495033818,-150.0,0.00019148,2]
[365148252,1749495033828,-150.0,0.00019152,2]
[365148254,1749495033837,-1708.59169916,0.00019157,2]
[365148256,1749495033847,-1000.0,0.00019159,2]
[365148258,1749495033856,-3768.87505328,0.00019164,2]
[365148314,1749495038377,-257.46091177,0.00019052,2]
[365148315,1749495038387,-552.54021449,0.00019164,2]
[365148316,1749495038433,-958.09298247,0.00019164,2]
[365148317,1749495038442,-155.86872249,0.00019168,2]
[365148318,1749495038451,-380.06847302,0.00019168,2]
[365148319,1749495038461,-1000.0,0.00019169,2]
[365148320,1749495038471,-805.96982202,0.00019169,2]
[365148321,1749495038591,-902.62187714,0.00019169,2]
[365148322,1749495038601,-500.0,0.00019173,2]
[365148323,1749495038611,-500.0,0.00019173,2]
[365148324,1749495038620,-500.0,0.00019173,2]
[365148325,1749495038629,-500.0,0.00019173,2]
[365148326,1749495038639,-500.0,0.00019173,2]
[365148327,1749495038648,-338.66337703,0.00019173,2]
[365148328,1749495038657,-500.0,0.00019173,2]
[365148329,1749495038667,-162.4783779,0.00019173,2]
[365148330,1749495038676,-500.0,0.00019173,2]
[365148331,1749495038686,-500.0,0.00019173,2]
[365148332,1749495038695,-422.37485548,0.00019173,2]
[365148333,1749495038705,-500.0,0.00019173,2]
[365148334,1749495038715,-500.0,0.00019173,2]
[365148335,1749495038725,-492.4353034,0.00019174,2]
[365148336,1749495038741,-853.80534749,0.00019174,2]
[365148337,1749495038753,-279.72147954,0.00019174,2]
[365148512,1749495040392,-486.07137567,0.00019174,2]
[365148514,1749495040401,-150.0,0.00019174,2]
[365148516,1749495040411,-595.59483779,0.00019174,2]
[365148518,1749495040420,-17072.0603124,0.00019174,2]
[365148520,1749495040429,-5571.2651869,0.00019174,2]
[365148522,1749495040439,-157588.6229999,0.00019174,2]
[365148524,1749495040448,-55412.0157356,0.00019174,2]
[365148526,1749495040459,-305.51236387,0.00019176,2]
[365148528,1749495040468,-540.08,0.00019176,2]
[365148530,1749495040478,-175.024,0.00019176,2]
[365148532,1749495040488,-1657.572,0.00019176,2]
[365148534,1749495040498,-150.0,0.00019177,2]
[365148536,1749495040508,-150.0,0.00019177,2]
[365148538,1749495040517,-153.6009993,0.00019177,2]
[365148540,1749495040526,-1592.92841518,0.00019177,3]
[365148542,1749495040536,-866944.66556748,0.00019177,3]
[365148551,1749495040616,-756.0037459,0.00019177,3]
[365148553,1749495040628,-3858.70211464,0.00019177,3]
[365148569,1749495040764,-1323.64966539,0.00019177,3]
[365148827,1749495043336,-376.29200305,0.00019177,3]
[365148829,1749495043348,-954.66667837,0.00019177,3]
[365148964,1749495046276,-2976.79177991,0.00019177,3]
[365148967,1749495123490,160.0,0.00014555,2]
[365148968,1749495432399,403.49,0.00013699,2]
[365148970,1749495515723,1075.35,0.0001614,2]
[365148971,1749495650335,1373.41249714,0.00017978,2]
[365148972,1749495760438,305.05,0.00018005,2]
[365148973,1749495787999,215.26233,7.945e-05,2]
[365148974,1749495823655,487.11646,0.00017946,2]
[365148975,1749495854753,196.47,0.00017998,2]
[365148976,1749495881376,201.0,0.00017367,2]
[365148977,1749496033388,472.2,0.00024658,120]
[365148978,1749496050466,151.0,0.00017226,2]
[365148979,1749496066850,151.0,0.00017229,2]
[365148980,1749496116161,1000.0,0.00017971,2]
[365148986,1749496149393,205.26,0.00017962,2]
[365148987,1749496183343,1028.6,0.00017971,2]
[365148989,1749496231369,-165.77,0.00018026,2]
[365148990,1749496231378,-150.0,0.00018036,7]
[365148991,1749496231389,-300.0,0.00018051,2]
[365148992,1749496231399,-161.29115121,0.00018052,2]
[365148993,1749496231421,-87.4099,0.00018052,2]
[365148994,1749496231432,-300.0,0.00018106,2]
[365148995,1749496231443,-300.0,0.00018152,2]
[365148996,1749496231452,-300.0,0.00018152,2]
[365148997,1749496231463,-1200.0,0.00018152,2]
[365148998,1749496231472,-15779.04,0.00018153,2]
[365148999,1749496231482,-151.0,0.00018217,2]
[365149000,1749496231491,-237.95526441,0.00018217,2]
[365149001,1749496231501,-207.4,0.00018217,2]
[365149002,1749496231510,-500.0,0.00018356,2]
[365149003,1749496231519,-1075.35,0.00018404,2]
[365149004,1749496231529,-150.0,0.000185,2]
[365149005,1749496231539,-150.0,0.000185,2]
[365149006,1749496231548,-796.76,0.000185,2]
[365149007,1749496231558,-640.82,0.000185,2]
[365149008,1749496231567,-165.85,0.00018503,2]
[365149009,1749496231576,-500.0,0.000186,6]
[365149010,1749496231586,-166.61,0.00018602,2]
[365149011,1749496231596,-461.18,0.00018625,2]
[365149012,1749496231606,-460.84,0.00018625,2]
[365149013,1749496231615,-796.76,0.00018625,2]
[365149014,1749496231625,-850.0,0.00018699,2]
[365149015,1749496231635,-1593.02,0.000187,2]
[365149016,1749496231644,-796.76,0.000187,2]
[365149017,1749496231654,-796.51,0.000187,2]
[365149018,1749496231664,-1000.0,0.000187,6]
[365149019,1749496231673,-796.76,0.000187,2]
[365149020,1749496231683,-461.18,0.000187,2]
[365149021,1749496231692,-1162.98,0.000187,2]
[365149022,1749496231701,-399.671368,0.00018794,2]
[365149023,1749496231712,-1500.0,0.000188,6]
[365149024,1749496231722,-2592.63837105,0.00018878,2]
[365149025,1749496231732,-2100.0,0.000189,6]
[365149026,1749496231741,-256.22943572,0.000189,2]
[365149028,1749496231750,-256.22943555,0.00018934,2]
[365149030,1749496231760,-308.17806169,0.00018968,2]
[365149032,1749496231769,-256.22943555,0.00018969,2]
[365149034,1749496231779,-3050.18163458,0.0001899,2]
[365149035,1749496231788,-179.42570041,0.00019,2]
[365149036,1749496231800,-1221.88403092,0.00019,2]
[365149037,1749496231812,-1028.2,0.00019,2]
[365149038,1749496231831,-315.598938,0.00019,2]
[365149039,1749496231842,-1146.19329236,0.00019,2]
[365149040,1749496231853,-1226.06676423,0.00019,2]
[365149041,1749496231942,-1086.55154,0.00019,2]
[365149061,1749496237405,-500.0,0.00018999,2]
[365149062,1749496237415,-500.0,0.00018999,2]
[365149063,1749496237425,-500.0,0.00018999,2]
[365149064,1749496237434,-500.0,0.00018999,2]
[365149065,1749496237444,-61.40833321,0.00018999,2]
[365149066,1749496237456,-315.71400199,0.00018999,2]
[365149067,1749496237478,-122.8776648,0.00018999,2]
[365149068,1749496237487,-500.0,0.00018999,2]
[365149069,1749496237496,-500.0,0.00018999,2]
[365149070,1749496237506,-500.0,0.00018999,2]
[365149071,1749496237516,-500.0,0.00018999,2]
[365149072,1749496237525,-500.0,0.00018999,2]
[365149073,1749496237535,-500.0,0.00018999,2]
[365149074,1749496237545,-500.0,0.00018999,2]
[365149075,1749496237554,-152.0673165,0.00018999,2]
[365149076,1749496237564,-500.0,0.00018999,2]
[365149077,1749496237573,-128.08639931,0.00018999,2]
[365149078,1749496237585,-371.91360069,0.00018999,2]
[365149079,1749496237595,-500.0,0.00018999,2]
[365149080,1749496237605,-500.0,0.00018999,2]
[365149081,1749496237614,-500.0,0.00018999,2]
[365149082,1749496237623,-258.72497738,0.00018999,2]
[365149083,1749496237632,-376.03840898,0.00018999,2]
[365149084,1749496237642,-500.0,0.00018999,2]
[365149085,1749496237651,-500.0,0.00018999,2]
[365149086,1749496237660,-500.0,0.00018999,2]
[365149087,1749496237670,-500.0,0.00018999,2]
[365149088,1749496237679,-500.0,0.00018999,2]
[365149089,1749496237689,-200.75342768,0.00018999,2]
[365149090,1749496237698,-4276.18747968,0.00019,2]
[365149091,1749496237710,-647.07417078,0.00019,2]
[365149092,1749496237745,-351.67879973,0.00019,2]
[365149320,1749496239556,-702.64498066,0.00019,2]
[365149322,1749496239567,-1033.48099541,0.00019,2]
[365149327,1749496239607,-996.88199203,0.00019,2]
[365149329,1749496239618,-1369.54349383,0.00019,2]
[365149356,1749496239870,-32242.88542337,0.00019,2]
[365149373,1749496240031,-16681.20759023,0.00019,2]
[365149375,1749496240043,-59429.49480836,0.00019,2]
[365149377,1749496240052,-500.0,0.00019025,2]
[365149379,1749496240062,-200.0,0.00019025,2]
[365149381,1749496240072,-5185.26,0.0001905,2]
[365149383,1749496240082,-161.63188426,0.00019078,2]
[365149385,1749496240091,-176.69306355,0.00019078,2]
[365149387,1749496240100,-304.05477847,0.00019078,2]
[365149388,1749496240110,-2592.63,0.000191,2]
[365149390,1749496240119,-1326.058,0.00019152,2]
[365149392,1749496240128,-175.024,0.00019152,2]
[365149394,1749496240142,-4455.80076097,0.00019164,2]
[365149396,1749496240151,-304.05477841,0.00019168,2]
[365149398,1749496240161,-155.86872249,0.00019168,2]
[365149400,1749496240170,-500.0,0.00019173,2]
[365149402,1749496240180,-500.0,0.00019173,2]
[365149404,1749496240189,-500.0,0.00019173,2]
[365149406,1749496240199,-500.0,0.00019173,2]
[365149408,1749496240208,-500.0,0.00019173,2]
[365149410,1749496240218,-500.0,0.00019173,2]
[365149412,1749496240227,-500.0,0.00019173,2]
[365149414,1749496240237,-500.0,0.00019173,2]
[365149416,1749496240246,-500.0,0.00019173,2]
[365149418,1749496240256,-357.30821667,0.00019173,2]
[365149420,1749496240265,-237.06436392,0.00019173,2]
[365149422,1749496240275,-500.0,0.00019173,2]
[365149424,1749496240284,-500.0,0.00019173,2]
[365149426,1749496240294,-250.46183033,0.00019173,2]
[365149429,1749496240303,-500.0,0.00019173,2]
[365149431,1749496240312,-4900.4354292,0.00019174,2]
[365149433,1749496240321,-10714.873641,0.00019174,2]
[365149435,1749496240331,-120097.978,0.00019174,2]
[365149437,1749496240340,-1756.0918785,0.00019174,2]
[365149439,1749496240350,-4164.5795658,0.00019174,2]
[365149441,1749496240359,-62335.4147461,0.00019174,2]
[365149443,1749496240368,-200.0,0.00019177,2]
[365149445,1749496240378,-200.0,0.00019177,2]
[365149447,1749496240388,-3397.95802006,0.00019177,2]
[365149449,1749496240397,-200.0,0.00019177,2]
[365149451,1749496240406,-2006.03148717,0.00019177,2]
[365149453,1749496240415,-164846.95005721,0.00019178,2]
[365149455,1749496240424,-151.0,0.00019178,2]
[365149457,1749496240434,-151.0,0.00019178,2]
[365149458,1749496240443,-151.0,0.00019178,2]
[365149460,1749496240453,-170.14412,0.00019178,2]
[365149462,1749496240462,-151.0,0.00019178,2]
[365149464,1749496240471,-151.0,0.00019178,2]
[365149466,1749496240480,-151.0,0.00019178,2]
[365149468,1749496240489,-151.0,0.00019178,2]
[365149470,1749496240499,-151.0,0.00019178,2]
[365149472,1749496240508,-151.0,0.00019178,2]
[365149474,1749496240517,-151.0,0.00019178,2]
[365149476,1749496240526,-151.0,0.00019178,2]
[365149478,1749496240536,-151.0,0.00019178,2]
[365149480,1749496240546,-151.0,0.00019178,2]
[365149482,1749496240555,-151.0,0.00019178,2]
[365149484,1749496240565,-151.0,0.00019178,2]
[365149486,1749496240575,-151.95623,0.00019178,2]
[365149488,1749496240584,-151.0,0.00019178,2]
[365149490,1749496240593,-151.0,0.00019178,2]
[365149492,1749496240602,-151.0,0.00019178,2]
[365149494,1749496240612,-151.551797,0.00019178,2]
[365149496,1749496240621,-151.0,0.00019178,2]
[365149498,1749496240631,-151.0,0.00019178,2]
[365149500,1749496240640,-151.0,0.00019178,2]
[365149502,1749496240649,-151.0,0.00019178,2]
[365149504,1749496240658,-151.0,0.00019178,2]
[365149506,1749496240667,-151.0,0.00019178,2]
[365149508,1749496240677,-151.0,0.00019178,2]
[365149510,1749496240687,-151.0,0.00019178,2]
[365149511,1749496240696,-151.0,0.00019178,2]
[365149512,1749496240706,-350.0,0.00019178,2]
[365149513,1749496240716,-350.0,0.00019178,2]
[365149514,1749496240725,-350.0,0.00019178,2]
[365149515,1749496240735,-350.0,0.00019178,2]
[365149516,1749496240745,-350.0,0.00019178,2]
[365149517,1749496240755,-350.0,0.00019178,2]
[365149518,1749496240764,-151.0,0.00019178,2]
[365149519,1749496240774,-151.369753,0.00019178,2]
[365149521,1749496240784,-151.0,0.00019178,2]
[365149523,1749496240793,-151.0,0.00019178,2]
[365149525,1749496240802,-151.0,0.00019178,2]
[365149526,1749496240811,-151.0,0.00019178,2]
[365149528,1749496240820,-151.0,0.00019178,2]
[365149530,1749496240829,-151.0,0.00019178,2]
[365149532,1749496240839,-216.954733,0.00019178,2]
[365149534,1749496240848,-151.0,0.00019178,2]
[365149536,1749496240857,-151.0,0.00019178,2]
[365149538,1749496240867,-151.0,0.00019178,2]
[365149540,1749496240876,-151.0,0.00019178,2]
[365149542,1749496240886,-151.0,0.00019178,2]
[365149544,1749496240895,-151.0,0.00019178,2]
[365149546,1749496240905,-151.575518,0.00019178,2]
[365149548,1749496240915,-151.0,0.00019178,2]
[365149550,1749496240925,-151.178537,0.00019178,2]
[365149552,1749496240934,-151.0,0.00019178,2]
[365149554,1749496240944,-151.0,0.00019178,2]
[365149556,1749496240953,-169.270272,0.00019178,2]
[365149558,1749496240963,-151.0,0.00019178,2]
[365149560,1749496240972,-151.0,0.00019178,2]
[365149562,1749496240981,-151.526034,0.00019178,2]
[365149564,1749496240990,-151.0,0.00019178,2]
[365149566,1749496241000,-151.0,0.00019178,2]
[365149568,1749496241010,-342.172784,0.00019178,2]
[365149570,1749496241019,-342.172784,0.00019178,2]
[365149572,1749496241028,-342.172784,0.00019178,2]
[365149574,1749496241036,-151.0,0.00019178,2]
[365149576,1749496241045,-342.172784,0.00019178,2]
[365149578,1749496241054,-151.0,0.00019178,2]
[365149580,1749496241063,-151.0,0.00019178,2]
[365149582,1749496241073,-151.0,0.00019178,2]
[365149584,1749496241082,-151.0,0.00019178,2]
[365149586,1749496241091,-152.81944,0.00019178,2]
[365149588,1749496241100,-151.0,0.00019178,2]
[365149590,1749496241109,-151.0,0.00019178,2]
[365149592,1749496241119,-151.0,0.00019178,2]
[365149594,1749496241129,-151.0,0.00019178,2]
[365149595,1749496241142,-151.0,0.00019178,2]
[365149597,1749496241151,-151.0,0.00019178,2]
[365149599,1749496241161,-151.0,0.00019178,2]
[365149601,1749496241170,-151.0,0.00019178,2]
[365149603,1749496241179,-151.0,0.00019178,2]
[365149605,1749496241188,-151.0,0.00019178,2]
[365149607,1749496241197,-151.0,0.00019178,2]
[365149609,1749496241206,-197.5988,0.00019178,2]
[365149611,1749496241216,-166.353755,0.00019178,2]
[365149613,1749496241225,-240.358916,0.00019178,2]
[365149615,1749496241235,-240.358916,0.00019178,2]
[365149617,1749496241244,-240.358916,0.00019178,2]
[365149619,1749496241253,-240.358916,0.00019178,2]
[365149621,1749496241263,-151.0,0.00019178,2]
[365149623,1749496241272,-151.0,0.00019178,2]
[365149625,1749496241281,-151.0,0.00019178,2]
[365149627,1749496241290,-331.222891,0.00019178,2]
[365149629,1749496241300,-331.222891,0.00019178,2]
[365149631,1749496241309,-331.222891,0.00019178,2]
[365149633,1749496241319,-331.222891,0.00019178,2]
[365149635,1749496241328,-331.222891,0.00019178,2]
[365149637,1749496241337,-331.222891,0.00019178,2]
[365149639,1749496241346,-151.0,0.00019178,2]
[365149641,1749496241355,-151.0,0.00019178,2]
[365149643,1749496241364,-151.0,0.00019178,2]
[365149645,1749496241373,-151.0,0.00019178,2]
[365149647,1749496241382,-151.0,0.00019178,2]
[365149648,1749496241392,-151.0,0.00019178,2]
[365149650,1749496241401,-151.0,0.00019178,2]
[365149652,1749496241411,-151.0,0.00019178,2]
[365149654,1749496241420,-151.0,0.00019178,2]
[365149656,1749496241429,-151.0,0.00019178,2]
[365149658,1749496241438,-151.0,0.00019178,2]
[365149660,1749496241448,-152.132392,0.00019178,2]
[365149662,1749496241457,-151.0,0.00019178,2]
[365149664,1749496241467,-151.0,0.00019178,2]
[365149666,1749496241476,-151.0,0.00019178,2]
[365149668,1749496241485,-151.0,0.00019178,2]
[365149670,1749496241495,-151.0,0.00019178,2]
[365149672,1749496241505,-151.0,0.00019178,2]
[365149674,1749496241514,-151.0,0.00019178,2]
[365149676,1749496241524,-151.0,0.00019178,2]
[365149678,1749496241533,-151.0,0.00019178,2]
[365149680,1749496241543,-151.0,0.00019178,2]
[365149682,1749496241553,-151.0,0.00019178,2]
[365149684,1749496241563,-151.896244,0.00019178,2]
[365149686,1749496241572,-151.0,0.00019178,2]
[365149688,1749496241582,-151.0,0.00019178,2]
[365149690,1749496241591,-151.0,0.00019178,2]
[365149692,1749496241600,-278.606212,0.00019178,2]
[365149694,1749496241610,-151.0,0.00019178,2]
[365149696,1749496241619,-280.161887,0.00019178,2]
[365149698,1749496241629,-151.0,0.00019178,2]
[365149700,1749496241638,-151.0,0.00019178,2]
[365149702,1749496241648,-151.0,0.00019178,2]
[365149704,1749496241657,-151.0,0.00019178,2]
[365149706,1749496241667,-151.0,0.00019178,2]
[365149708,1749496241676,-151.0,0.00019178,2]
[365149710,1749496241685,-151.0,0.00019178,2]
[365149712,1749496241695,-151.0,0.00019178,2]
[365149714,1749496241705,-151.0,0.00019178,2]
[365149716,1749496241714,-151.0,0.00019178,2]
[365149718,1749496241724,-151.0,0.00019178,2]
[365149720,1749496241733,-151.0,0.00019178,2]
[365149722,1749496241743,-188.600066,0.00019178,2]
[365149724,1749496241752,-188.600066,0.00019178,2]
[365149726,1749496241762,-188.600066,0.00019178,2]
[365149728,1749496241772,-188.600066,0.00019178,2]
[365149730,1749496241781,-188.600066,0.00019178,2]
[365149732,1749496241791,-188.600066,0.00019178,2]
[365149734,1749496241800,-151.0,0.00019178,2]
[365149736,1749496241810,-151.0,0.00019178,2]
[365149738,1749496241819,-192.062464,0.00019178,2]
[365149740,1749496241829,-333.405724,0.00019178,2]
[365149742,1749496241838,-333.405724,0.00019178,2]
[365149744,1749496241848,-333.405724,0.00019178,2]
[365149746,1749496241857,-333.405724,0.00019178,2]
[365149748,1749496241866,-333.405724,0.00019178,2]
[365149750,1749496241876,-333.405724,0.00019178,2]
[365149752,1749496241885,-151.0,0.00019178,2]
[365149754,1749496241895,-151.0,0.00019178,2]
[365149756,1749496241904,-151.0,0.00019178,2]
[365149758,1749496241913,-151.0,0.00019178,2]
[365149760,1749496241922,-151.0,0.00019178,2]
[365149762,1749496241932,-151.0,0.00019178,2]
[365149764,1749496241941,-151.0,0.00019178,2]